fUSD/lending_fUSD_20260611
["ID","MTS","AMOUNT","RATE_DAILY","PERIOD"]
[424823489,1781184637000,-500.0,8.54e-05,2]
[424823487,1781184637000,-500.0,8.54e-05,2]
[424823493,1781184637000,-500.0,8.54e-05,2]
[424823492,1781184637000,-56.85480018,8.54e-05,2]
[424823486,1781184637000,-500.0,8.54e-05,2]
[424823543,1781184638000,-150.0,0.00010959,2]
[424823535,1781184638000,-500.0,0.00010958,2]
[424823546,1781184638000,-166.66,0.00011068,2]
[424823536,1781184638000,-500.0,0.00010958,2]
[424823534,1781184638000,-500.0,0.00010958,2]
[424823526,1781184638000,-2354.89,0.00010027,2]
[424823531,1781184638000,-2354.89,0.00010529,2]
[424823528,1781184638000,-433.0,0.00010074,2]
[424823527,1781184638000,-250.31279834,0.00010046,2]
[424823525,1781184638000,-163.65,0.0001,2]
[424823545,1781184638000,-2354.89,0.0001103,2]
[424823530,1781184638000,-2354.89,0.00010278,2]
[424823540,1781184638000,-500.0,0.00010958,2]
[424823550,1781184638000,-166.66,0.00011288,2]
[424823544,1781184638000,-166.66,0.00010959,2]
[424823538,1781184638000,-500.0,0.00010958,2]
[424823537,1781184638000,-500.0,0.00010958,2]
[424823542,1781184638000,-3201.28,0.00010959,2]
[424823539,1781184638000,-500.0,0.00010958,2]
[424823547,1781184638000,-736.0,0.00011081,2]
[424823560,1781184638000,-2000.0,0.00012329,2]
[424823549,1781184638000,-150.0,0.00011233,2]
[424823548,1781184638000,-166.66,0.00011178,2]
[424823559,1781184638000,-392.58,0.00012329,2]
[424823532,1781184638000,-2354.89,0.00010779,2]
[424823551,1781184638000,-2000.0,0.00011301,2]
[424823552,1781184638000,-166.66,0.00011397,2]
[424823553,1781184638000,-3706.19,0.00011507,2]
[424823541,1781184638000,-150.0,0.00010959,2]
[424823523,1781184638000,-2000.0,9.247e-05,2]
[424823518,1781184638000,-500.0,8.988e-05,2]
[424823524,1781184638000,-184.3313882,9.262e-05,2]
[424823556,1781184638000,-900.0,0.000119,4]
[424823494,1781184638000,-500.0,8.54e-05,2]
[424823496,1781184638000,-200.0,8.54e-05,2]
[424823495,1781184638000,-500.0,8.54e-05,2]
[424823497,1781184638000,-500.0,8.54e-05,2]
[424823499,1781184638000,-2219195.64471091,8.541e-05,2]
[424823498,1781184638000,-500.0,8.54e-05,2]
[424823500,1781184638000,-700.0,8.6e-05,3]
[424823501,1781184638000,-1500000.0,8.614e-05,2]
[424823502,1781184638000,-2500.0,8.615e-05,2]
[424823506,1781184638000,-1500.0,8.7e-05,3]
[424823508,1781184638000,-500.0,8.714e-05,2]
[424823503,1781184638000,-6436.654,8.641e-05,2]
[424823505,1781184638000,-10000.0,8.7e-05,2]
[424823504,1781184638000,-378.515,8.641e-05,2]
[424823507,1781184638000,-166.66,8.712e-05,2]
[424823509,1781184638000,-160.0,8.75e-05,2]
[424823511,1781184638000,-669.9,8.759e-05,2]
[424823521,1781184638000,-255.0,9.158e-05,2]
[424823512,1781184638000,-33277.9515,8.8e-05,2]
[424823517,1781184638000,-166.66,8.974e-05,2]
[424823510,1781184638000,-215.95576085,8.751e-05,2]
[424823514,1781184638000,-3100.0,8.9e-05,3]
[424823520,1781184638000,-600.0,9e-05,3]
[424823513,1781184638000,-2300.0,8.8e-05,3]
[424823515,1781184638000,-300.0,8.9e-05,3]
[424823516,1781184638000,-200.0,8.964e-05,2]
[424823519,1781184638000,-3900.0,9e-05,3]
[424823522,1781184638000,-166.66,9.235e-05,2]
[424823533,1781184638000,-21135.21369171,0.000109,2]
[424823554,1781184638000,-166.66,0.00011507,2]
[424823529,1781184638000,-2000.0,0.00010274,2]
[424823557,1781184638000,-308.61,0.00012038,2]
[424823594,1781184638000,-500.0,0.00013698,2]
[424823598,1781184638000,-500.0,0.00013698,2]
[424823591,1781184638000,-524.05,0.00013698,2]
[424823590,1781184638000,-500.0,0.00013698,2]
[424823596,1781184638000,-500.0,0.00013698,2]
[424823597,1781184638000,-500.0,0.00013698,2]
[424823595,1781184638000,-591.51194087,0.00013698,2]
[424823600,1781184638000,-500.0,0.00013698,2]
[424823601,1781184638000,-500.0,0.00013698,2]
[424823602,1781184638000,-2448.18,0.00013698,2]
[424823607,1781184638000,-2448.18,0.00013698,2]
[424823604,1781184638000,-2448.18,0.00013698,2]
[424823605,1781184638000,-2448.18,0.00013698,2]
[424823613,1781184638000,-887.6,0.00013698,2]
[424823609,1781184638000,-887.6,0.00013698,2]
[424823610,1781184638000,-887.6,0.00013698,2]
[424823603,1781184638000,-2448.18,0.00013698,2]
[424823611,1781184638000,-887.6,0.00013698,2]
[424823608,1781184638000,-617.58,0.00013698,2]
[424823606,1781184638000,-2448.18,0.00013698,2]
[424823612,1781184638000,-887.6,0.00013698,2]
[424823614,1781184638000,-887.6,0.00013698,2]
[424823616,1781184638000,-522.79,0.00013698,2]
[424823615,1781184638000,-522.79,0.00013698,2]
[424823620,1781184638000,-522.79,0.00013698,2]
[424823619,1781184638000,-522.79,0.00013698,2]
[424823621,1781184638000,-500.0,0.00013698,2]
[424823618,1781184638000,-522.79,0.00013698,2]
[424823555,1781184638000,-1280.0,0.00011527,2]
[424823599,1781184638000,-500.0,0.00013698,2]
[424823592,1781184638000,-500.0,0.00013698,2]
[424823617,1781184638000,-522.79,0.00013698,2]
[424823589,1781184638000,-500.0,0.00013698,2]
[424823593,1781184638000,-500.0,0.00013698,2]
[424823558,1781184638000,-1252.0,0.00012188,2]
[424823563,1781184638000,-300.0,0.00013,2]
[424823564,1781184638000,-2129.0,0.00013412,2]
[424823567,1781184638000,-500.0,0.00013425,3]
[424823565,1781184638000,-500.0,0.00013425,3]
[424823562,1781184638000,-1280.0,0.00012967,2]
[424823568,1781184638000,-500.0,0.00013425,3]
[424823572,1781184638000,-500.0,0.00013425,3]
[424823569,1781184638000,-500.0,0.00013425,3]
[424823570,1781184638000,-500.0,0.00013425,3]
[424823571,1781184638000,-500.0,0.00013425,3]
[424823573,1781184638000,-500.0,0.00013425,3]
[424823574,1781184638000,-500.0,0.00013425,3]
[424823561,1781184638000,-199.5,0.00012944,2]
[424823586,1781184638000,-500.0,0.00013698,2]
[424823576,1781184638000,-500.0,0.00013425,3]
[424823583,1781184638000,-500.0,0.00013425,3]
[424823584,1781184638000,-500.0,0.00013425,3]
[424823622,1781184638000,-500.0,0.00013698,2]
[424823581,1781184638000,-500.0,0.00013425,3]
[424823582,1781184638000,-500.0,0.00013425,3]
[424823588,1781184638000,-500.0,0.00013698,2]
[424823580,1781184638000,-233.24958669,0.00013425,3]
[424823578,1781184638000,-500.0,0.00013425,3]
[424823577,1781184638000,-500.0,0.00013425,3]
[424823579,1781184638000,-500.0,0.00013425,3]
[424823575,1781184638000,-500.0,0.00013425,3]
[424823587,1781184638000,-500.0,0.00013698,2]
[424823585,1781184638000,-467.8377148,0.00013425,3]
[424823664,1781184639000,-500.0,0.00013698,2]
[424823660,1781184639000,-500.0,0.00013698,2]
[424823662,1781184639000,-500.0,0.00013698,2]
[424823661,1781184639000,-500.0,0.00013698,2]
[424823657,1781184639000,-500.0,0.00013698,2]
[424823658,1781184639000,-500.0,0.00013698,2]
[424823656,1781184639000,-500.0,0.00013698,2]
[424823653,1781184639000,-500.0,0.00013698,2]
[424823669,1781184639000,-500.0,0.00013698,2]
[424823652,1781184639000,-500.0,0.00013698,2]
[424823659,1781184639000,-500.0,0.00013698,2]
[424823654,1781184639000,-500.0,0.00013698,2]
[424823674,1781184639000,-500.0,0.00013698,2]
[424823666,1781184639000,-500.0,0.00013698,2]
[424823670,1781184639000,-500.0,0.00013698,2]
[424823665,1781184639000,-500.0,0.00013698,2]
[424823668,1781184639000,-500.0,0.00013698,2]
[424823673,1781184639000,-500.0,0.00013698,2]
[424823672,1781184639000,-500.0,0.00013698,2]
[424823675,1781184639000,-500.0,0.00013698,2]
[424823671,1781184639000,-500.0,0.00013698,2]
[424823681,1781184639000,-500.0,0.00013698,2]
[424823683,1781184639000,-500.0,0.00013698,2]
[424823682,1781184639000,-500.0,0.00013698,2]
[424823655,1781184639000,-570.07598857,0.00013698,2]
[424823684,1781184639000,-500.0,0.00013698,2]
[424823667,1781184639000,-500.0,0.00013698,2]
[424823663,1781184639000,-500.0,0.00013698,2]
[424823636,1781184639000,-500.0,0.00013698,2]
[424823647,1781184639000,-500.0,0.00013698,2]
[424823685,1781184639000,-500.0,0.00013698,2]
[424823625,1781184639000,-500.0,0.00013698,2]
[424823626,1781184639000,-500.0,0.00013698,2]
[424823624,1781184639000,-500.0,0.00013698,2]
[424823627,1781184639000,-500.0,0.00013698,2]
[424823628,1781184639000,-500.0,0.00013698,2]
[424823631,1781184639000,-500.0,0.00013698,2]
[424823632,1781184639000,-500.0,0.00013698,2]
[424823638,1781184639000,-500.0,0.00013698,2]
[424823630,1781184639000,-500.0,0.00013698,2]
[424823629,1781184639000,-500.0,0.00013698,2]
[424823635,1781184639000,-500.0,0.00013698,2]
[424823651,1781184639000,-500.0,0.00013698,2]
[424823634,1781184639000,-500.0,0.00013698,2]
[424823637,1781184639000,-500.0,0.00013698,2]
[424823639,1781184639000,-500.0,0.00013698,2]
[424823640,1781184639000,-500.0,0.00013698,2]
[424823644,1781184639000,-500.0,0.00013698,2]
[424823643,1781184639000,-500.0,0.00013698,2]
[424823642,1781184639000,-500.0,0.00013698,2]
[424823641,1781184639000,-500.0,0.00013698,2]
[424823645,1781184639000,-500.0,0.00013698,2]
[424823649,1781184639000,-500.0,0.00013698,2]
[424823650,1781184639000,-500.0,0.00013698,2]
[424823648,1781184639000,-500.0,0.00013698,2]
[424823646,1781184639000,-500.0,0.00013698,2]
[424823633,1781184639000,-500.0,0.00013698,2]
[424823687,1781184639000,-500.0,0.00013698,2]
[424823623,1781184639000,-500.0,0.00013698,2]
[424823676,1781184639000,-500.0,0.00013698,2]
[424823716,1781184639000,-500.0,0.00013698,2]
[424823715,1781184639000,-500.0,0.00013698,2]
[424823721,1781184639000,-500.0,0.00013699,2]
[424823718,1781184639000,-432.93709385,0.00013698,2]
[424823723,1781184639000,-500.0,0.00013699,2]
[424823720,1781184639000,-200.0,0.00013699,2]
[424823719,1781184639000,-2500.0,0.00013699,2]
[424823713,1781184639000,-500.0,0.00013698,2]
[424823722,1781184639000,-500.0,0.00013699,2]
[424823724,1781184639000,-500.0,0.00013699,2]
[424823734,1781184639000,-500.0,0.00013699,2]
[424823725,1781184639000,-500.0,0.00013699,2]
[424823731,1781184639000,-500.0,0.00013699,2]
[424823733,1781184639000,-500.0,0.00013699,2]
[424823726,1781184639000,-500.0,0.00013699,2]
[424823732,1781184639000,-500.0,0.00013699,2]
[424823727,1781184639000,-500.0,0.00013699,2]
[424823729,1781184639000,-500.0,0.00013699,2]
[424823730,1781184639000,-500.0,0.00013699,2]
[424823728,1781184639000,-500.0,0.00013699,2]
[424823735,1781184639000,-500.0,0.00013699,2]
[424823739,1781184639000,-500.0,0.00013699,2]
[424823737,1781184639000,-500.0,0.00013699,2]
[424823741,1781184639000,-500.0,0.00013699,2]
[424823736,1781184639000,-500.0,0.00013699,2]
[424823686,1781184639000,-500.0,0.00013698,2]
[424823738,1781184639000,-500.0,0.00013699,2]
[424823717,1781184639000,-500.0,0.00013698,2]
[424823714,1781184639000,-500.0,0.00013698,2]
[424823740,1781184639000,-500.0,0.00013699,2]
[424823707,1781184639000,-500.0,0.00013698,2]
[424823712,1781184639000,-500.0,0.00013698,2]
[424823677,1781184639000,-500.0,0.00013698,2]
[424823679,1781184639000,-500.0,0.00013698,2]
[424823680,1781184639000,-632.16,0.00013698,2]
[424823688,1781184639000,-500.0,0.00013698,2]
[424823694,1781184639000,-500.0,0.00013698,2]
[424823698,1781184639000,-509.65778155,0.00013698,2]
[424823696,1781184639000,-500.0,0.00013698,2]
[424823693,1781184639000,-500.0,0.00013698,2]
[424823697,1781184639000,-500.0,0.00013698,2]
[424823692,1781184639000,-547.56222085,0.00013698,2]
[424823690,1781184639000,-500.0,0.00013698,2]
[424823695,1781184639000,-350.88728134,0.00013698,2]
[424823678,1781184639000,-500.0,0.00013698,2]
[424823699,1781184639000,-500.0,0.00013698,2]
[424823708,1781184639000,-500.0,0.00013698,2]
[424823706,1781184639000,-500.0,0.00013698,2]
[424823704,1781184639000,-500.0,0.00013698,2]
[424823709,1781184639000,-500.0,0.00013698,2]
[424823689,1781184639000,-500.0,0.00013698,2]
[424823702,1781184639000,-500.0,0.00013698,2]
[424823705,1781184639000,-500.0,0.00013698,2]
[424823711,1781184639000,-500.0,0.00013698,2]
[424823701,1781184639000,-500.0,0.00013698,2]
[424823710,1781184639000,-500.0,0.00013698,2]
[424823700,1781184639000,-500.0,0.00013698,2]
[424823691,1781184639000,-447.21655394,0.00013698,2]
[424823703,1781184639000,-500.0,0.00013698,2]
[424823781,1781184640000,-518.7161452,0.00014997,2]
[424823780,1781184640000,-500.0,0.00014997,2]
[424823777,1781184640000,-14373.45969046,0.000149,3]
[424823776,1781184640000,-522.79,0.00014899,2]
[424823773,1781184640000,-522.79,0.0001484,2]
[424823775,1781184640000,-887.6,0.00014899,2]
[424823778,1781184640000,-168.91634944,0.00014917,2]
[424823772,1781184640000,-887.6,0.0001484,2]
[424823783,1781184640000,-500.0,0.00014999,2]
[424823784,1781184640000,-500.0,0.00014999,2]
[424823779,1781184640000,-317.602487,0.0001497,2]
[424823782,1781184640000,-500.0,0.00014997,2]
[424823787,1781184640000,-362.50237529,0.00014999,2]
[424823785,1781184640000,-500.0,0.00014999,2]
[424823788,1781184640000,-500.0,0.00014999,2]
[424823789,1781184640000,-500.0,0.00014999,2]
[424823786,1781184640000,-500.0,0.00014999,2]
[424823790,1781184640000,-500.0,0.00014999,2]
[424823791,1781184640000,-500.0,0.00014999,2]
[424823793,1781184640000,-500.0,0.00014999,2]
[424823792,1781184640000,-500.0,0.00014999,2]
[424823795,1781184640000,-500.0,0.00014999,2]
[424823794,1781184640000,-500.0,0.00014999,2]
[424823796,1781184640000,-185.2409854,0.00014999,2]
[424823765,1781184640000,-1280.0,0.00014408,2]
[424823774,1781184640000,-2448.18,0.00014899,2]
[424823767,1781184640000,-151.0,0.0001463,2]
[424823755,1781184640000,-250.0,0.00014,2]
[424823761,1781184640000,-500.0,0.00014393,2]
[424823746,1781184640000,-500.0,0.00013699,2]
[424823745,1781184640000,-500.0,0.00013699,2]
[424823743,1781184640000,-500.0,0.00013699,2]
[424823742,1781184640000,-500.0,0.00013699,2]
[424823744,1781184640000,-500.0,0.00013699,2]
[424823748,1781184640000,-500.0,0.00013699,2]
[424823758,1781184640000,-522.79,0.00014034,2]
[424823747,1781184640000,-500.0,0.00013699,2]
[424823759,1781184640000,-1500.0,0.00014252,2]
[424823750,1781184640000,-500.0,0.00013699,2]
[424823753,1781184640000,-500.0,0.00013699,2]
[424823751,1781184640000,-500.0,0.00013699,2]
[424823749,1781184640000,-295.68448446,0.00013699,2]
[424823752,1781184640000,-500.0,0.00013699,2]
[424823757,1781184640000,-887.6,0.00014034,2]
[424823756,1781184640000,-2448.18,0.00014034,2]
[424823754,1781184640000,-26574.84911613,0.0001399,2]
[424823760,1781184640000,-503.31933434,0.00014393,2]
[424823762,1781184640000,-539.71180244,0.00014393,2]
[424823766,1781184640000,-151.0,0.0001463,2]
[424823770,1781184640000,-1555.5,0.000148,2]
[424823769,1781184640000,-1155.0,0.00014753,2]
[424823764,1781184640000,-500.0,0.00014393,2]
[424823771,1781184640000,-2448.18,0.0001484,2]
[424823768,1781184640000,-246.382536,0.000147,2]
[424823763,1781184640000,-500.0,0.00014393,2]
[424823799,1781184640000,-2448.18,0.00014999,2]
[424823798,1781184640000,-2448.18,0.00014999,2]
[424823801,1781184640000,-2448.18,0.00014999,2]
[424823830,1781184640000,-522.79,0.00014999,2]
[424823834,1781184640000,-522.79,0.00014999,2]
[424823833,1781184640000,-522.79,0.00014999,2]
[424823832,1781184640000,-522.79,0.00014999,2]
[424823831,1781184640000,-522.79,0.00014999,2]
[424823835,1781184640000,-522.79,0.00014999,2]
[424823843,1781184640000,-500.0,0.00014999,2]
[424823842,1781184640000,-500.0,0.00014999,2]
[424823839,1781184640000,-522.79,0.00014999,2]
[424823844,1781184640000,-300.0,0.00014999,2]
[424823840,1781184640000,-522.79,0.00014999,2]
[424823837,1781184640000,-522.79,0.00014999,2]
[424823838,1781184640000,-522.79,0.00014999,2]
[424823845,1781184640000,-300.0,0.00014999,2]
[424823849,1781184640000,-300.0,0.00014999,2]
[424823846,1781184640000,-300.0,0.00014999,2]
[424823847,1781184640000,-300.0,0.00014999,2]
[424823848,1781184640000,-300.0,0.00014999,2]
[424823850,1781184640000,-666.0,0.00014999,2]
[424823852,1781184640000,-10057.54024639,0.00015,2]
[424823853,1781184640000,-9132.92696,0.00015,2]
[424823851,1781184640000,-300.0,0.00014999,2]
[424823855,1781184640000,-300.0,0.00015199,2]
[424823854,1781184640000,-900.0,0.00015068,2]
[424823797,1781184640000,-2448.18,0.00014999,2]
[424823828,1781184640000,-522.79,0.00014999,2]
[424823827,1781184640000,-522.79,0.00014999,2]
[424823841,1781184640000,-522.86338711,0.00014999,2]
[424823825,1781184640000,-887.6,0.00014999,2]
[424823800,1781184640000,-2448.18,0.00014999,2]
[424823829,1781184640000,-522.79,0.00014999,2]
[424823810,1781184640000,-2448.18,0.00014999,2]
[424823811,1781184640000,-2448.31944383,0.00014999,2]
[424823803,1781184640000,-2448.18,0.00014999,2]
[424823802,1781184640000,-2448.18,0.00014999,2]
[424823808,1781184640000,-2448.18,0.00014999,2]
[424823804,1781184640000,-2448.18,0.00014999,2]
[424823806,1781184640000,-2448.18,0.00014999,2]
[424823809,1781184640000,-2448.18,0.00014999,2]
[424823805,1781184640000,-2448.18,0.00014999,2]
[424823812,1781184640000,-887.6,0.00014999,2]
[424823816,1781184640000,-887.6,0.00014999,2]
[424823807,1781184640000,-2448.18,0.00014999,2]
[424823822,1781184640000,-887.6,0.00014999,2]
[424823815,1781184640000,-887.6,0.00014999,2]
[424823819,1781184640000,-887.6,0.00014999,2]
[424823820,1781184640000,-887.6,0.00014999,2]
[424823813,1781184640000,-887.6,0.00014999,2]
[424823821,1781184640000,-887.6,0.00014999,2]
[424823817,1781184640000,-887.6,0.00014999,2]
[424823818,1781184640000,-887.6,0.00014999,2]
[424823823,1781184640000,-887.6,0.00014999,2]
[424823824,1781184640000,-887.6,0.00014999,2]
[424823814,1781184640000,-887.6,0.00014999,2]
[424823836,1781184640000,-522.79,0.00014999,2]
[424823826,1781184640000,-887.81036356,0.00014999,2]
[424823887,1781184641000,-300.0,0.00015599,2]
[424823898,1781184641000,-10057.54024639,0.000158,2]
[424823889,1781184641000,-300.0,0.00015599,2]
[424823896,1781184641000,-300.0,0.00015699,2]
[424823895,1781184641000,-300.0,0.00015699,2]
[424823894,1781184641000,-300.0,0.00015699,2]
[424823892,1781184641000,-9132.92696,0.000156,2]
[424823888,1781184641000,-300.0,0.00015599,2]
[424823893,1781184641000,-300.0,0.00015699,2]
[424823897,1781184641000,-687.07472415,0.00015699,2]
[424823899,1781184641000,-9132.92696,0.000158,2]
[424823890,1781184641000,-666.0,0.00015599,2]
[424823900,1781184641000,-1280.0,0.00015849,2]
[424823923,1781184641000,-900.0,0.00016438,2]
[424823903,1781184641000,-9132.92696,0.000159,2]
[424823906,1781184641000,-300.0,0.00015999,2]
[424823907,1781184641000,-300.0,0.00015999,2]
[424823905,1781184641000,-300.0,0.00015999,2]
[424823902,1781184641000,-10057.54024639,0.000159,2]
[424823904,1781184641000,-300.0,0.00015999,2]
[424823908,1781184641000,-300.0,0.00016,2]
[424823909,1781184641000,-215.95576085,0.00016,3]
[424823910,1781184641000,-682.32218338,0.00016,2]
[424823912,1781184641000,-10057.54024639,0.000161,2]
[424823922,1781184641000,-526.0,0.00016438,2]
[424823911,1781184641000,-69774.0,0.00016,2]
[424823891,1781184641000,-10057.54024639,0.000156,2]
[424823901,1781184641000,-1672.7364795,0.00015896,2]
[424823885,1781184641000,-9132.92696,0.000155,2]
[424823858,1781184641000,-300.0,0.00015199,2]
[424823875,1781184641000,-300.0,0.00015399,2]
[424823913,1781184641000,-9132.92696,0.000161,2]
[424823859,1781184641000,-300.0,0.00015199,2]
[424823857,1781184641000,-300.0,0.00015199,2]
[424823856,1781184641000,-300.0,0.00015199,2]
[424823860,1781184641000,-666.0,0.00015199,2]
[424823862,1781184641000,-9132.92696,0.000152,2]
[424823861,1781184641000,-10057.54024639,0.000152,2]
[424823864,1781184641000,-10057.54024639,0.000153,2]
[424823863,1781184641000,-500.0,0.00015299,2]
[424823865,1781184641000,-9132.92696,0.000153,2]
[424823867,1781184641000,-300.0,0.00015342,2]
[424823866,1781184641000,-300.0,0.00015342,2]
[424823869,1781184641000,-300.0,0.00015342,2]
[424823886,1781184641000,-300.0,0.00015599,2]
[424823872,1781184641000,-1613.0535,0.00015348,2]
[424823868,1781184641000,-300.0,0.00015342,2]
[424823871,1781184641000,-666.0,0.00015342,2]
[424823873,1781184641000,-172.0,0.00015352,2]
[424823876,1781184641000,-300.0,0.00015399,2]
[424823878,1781184641000,-666.0,0.00015399,2]
[424823881,1781184641000,-300.0,0.00015414,2]
[424823884,1781184641000,-10057.54024639,0.000155,2]
[424823880,1781184641000,-300.0,0.00015414,2]
[424823877,1781184641000,-300.0,0.00015399,2]
[424823883,1781184641000,-151.0,0.00015493,2]
[424823882,1781184641000,-666.0,0.00015414,2]
[424823874,1781184641000,-300.0,0.00015399,2]
[424823879,1781184641000,-300.0,0.00015414,2]
[424823870,1781184641000,-377.99479175,0.00015342,2]
[424823918,1781184641000,-9132.92696,0.000162,2]
[424823953,1781184641000,-546.7324081,0.00018,2]
[424823919,1781184641000,-10057.54024639,0.000164,2]
[424823979,1781184641000,-151.0,0.00018636,2]
[424823952,1781184641000,-249.0,0.00017944,2]
[424823959,1781184641000,-10057.54024639,0.000181,2]
[424823955,1781184641000,-350.0,0.00018,2]
[424823950,1781184641000,-10057.54024639,0.000179,2]
[424823954,1781184641000,-166.05435716,0.00018,2]
[424823957,1781184641000,-526.0,0.00018082,2]
[424823961,1781184641000,-166.05435716,0.000182,2]
[424823960,1781184641000,-546.7324081,0.000182,2]
[424823956,1781184641000,-627.0,0.00018,2]
[424823958,1781184641000,-1934.38338736,0.00018088,2]
[424823974,1781184641000,-627.0,0.00018626,2]
[424823973,1781184641000,-10057.54024639,0.000185,2]
[424823951,1781184641000,-1200.0,0.000179,6]
[424823962,1781184641000,-251.2429892,0.000182,2]
[424823964,1781184641000,-664.63879781,0.000183,3]
[424823972,1781184641000,-546.7324081,0.000185,2]
[424823966,1781184641000,-80541.26,0.00018356,2]
[424823968,1781184641000,-166.05435716,0.000184,2]
[424823970,1781184641000,-1431.53,0.000184,2]
[424823971,1781184641000,-2213.7,0.0001841,2]
[424823967,1781184641000,-546.7324081,0.000184,2]
[424823969,1781184641000,-693.36827708,0.000184,2]
[424823977,1781184641000,-200.0,0.00018636,2]
[424823975,1781184641000,-151.0,0.00018636,2]
[424823976,1781184641000,-151.0,0.00018636,2]
[424823978,1781184641000,-151.0,0.00018636,2]
[424823917,1781184641000,-10057.54024639,0.000162,2]
[424823965,1781184641000,-500.0,0.00018355,2]
[424823949,1781184641000,-1935.0,0.00017808,2]
[424823963,1781184641000,-10057.54024639,0.000183,2]
[424823948,1781184641000,-10057.54024639,0.000178,2]
[424823914,1781184641000,-682.32218338,0.000161,2]
[424823945,1781184641000,-10057.54024639,0.000176,2]
[424823915,1781184641000,-9999.99,0.00016116,2]
[424823921,1781184641000,-249.05,0.00016438,2]
[424823916,1781184641000,-168.91634944,0.0001613,2]
[424823924,1781184641000,-230.68,0.00016438,2]
[424823927,1781184641000,-500.0,0.00016699,2]
[424823930,1781184641000,-168.4,0.00016712,2]
[424823925,1781184641000,-1734.62772924,0.00016444,2]
[424823926,1781184641000,-10057.54024639,0.000166,2]
[424823932,1781184641000,-5530.0,0.000168,3]
[424823928,1781184641000,-500.0,0.00016699,2]
[424823933,1781184641000,-500.0,0.00016899,2]
[424823935,1781184641000,-500.0,0.00016932,2]
[424823920,1781184641000,-9132.92696,0.000164,2]
[424823936,1781184641000,-1798.80895522,0.00016992,2]
[424823941,1781184641000,-168.91634944,0.00017342,2]
[424823942,1781184641000,-10057.54024639,0.000174,2]
[424823947,1781184641000,-1945.69,0.00017728,2]
[424823940,1781184641000,-1280.0,0.0001729,2]
[424823931,1781184641000,-392.58,0.00016767,2]
[424823937,1781184641000,-10057.54024639,0.000171,2]
[424823943,1781184641000,-5530.0,0.000175,5]
[424823938,1781184641000,-10057.54024639,0.000172,2]
[424823946,1781184641000,-200.0,0.00017662,2]
[424823929,1781184641000,-10057.54024639,0.000167,2]
[424823944,1781184641000,-1865.36488656,0.0001754,2]
[424823934,1781184641000,-10057.54024639,0.000169,2]
[424823939,1781184641000,-526.0,0.0001726,2]
[424823997,1781184642000,-151.0,0.00018636,2]
[424823993,1781184642000,-151.0,0.00018636,2]
[424823996,1781184642000,-151.0,0.00018636,2]
[424823995,1781184642000,-500.0,0.00018636,2]
[424824006,1781184642000,-500.0,0.00018636,2]
[424824000,1781184642000,-151.0,0.00018636,2]
[424824001,1781184642000,-500.0,0.00018636,2]
[424824004,1781184642000,-500.0,0.00018636,2]
[424824009,1781184642000,-500.0,0.00018636,2]
[424823994,1781184642000,-151.0,0.00018636,2]